bitfinex-derivatives/quotes_ETHF0:USTF0_20220106
["timestamp","ask_amount","ask_price","bid_price","bid_amount"]
[1641474350745,2.00479,3383.3,3383.1,0.397182]
[1641474351348,2.00479,3383.3,3383.2,0.459982]
[1641474351545,2.75576694,3383.7,3383.2,0.459982]
[1641474351747,2.75576694,3383.7,3383.3,0.397182]
[1641474351947,2.75576694,3383.7,3383.3,1.397182]
[1641474352249,2.75576694,3383.7,3383.3,2.397182]
[1641474352447,2.00479,3383.7,3383.3,2.397182]
[1641474354749,2.00479,3383.7,3383.6,1.25134377]
[1641474354948,2.00479,3383.7,3383.6,1.64852577]
[1641474355949,2.00479,3383.7,3383.6,2.10850777]
[1641474356149,4.0,3384.0,3383.6,1.64852577]
[1641474356752,1.5,3383.8,3383.4,2.73940991]
[1641474356952,12.91,3383.7,3383.6,1.00113095]
[1641474357350,0.75097694,3383.9,3383.6,1.00113095]
[1641474357550,0.03344202,3383.7,3383.6,1.00113095]
[1641474357750,16.91,3384.0,3383.6,1.00113095]
[1641474357751,0.03344202,3383.8,3383.6,1.00113095]
[1641474357951,1.02563324,3383.7,3383.4,0.75094966]
[1641474358550,0.99219122,3383.7,3383.4,0.75094966]
[1641474359155,8.0,3383.6,3383.4,4.966e-05]
[1641474359354,8.0,3383.6,3383.1,1.25134377]
[1641474359355,8.0,3383.2,3383.1,1.25134377]
[1641474359555,19.65865623,3383.1,3382.9,1.48806614]
[1641474359753,1.5,3383.0,3382.9,1.48806614]
[1641474359955,15.16344623,3383.0,3382.9,1.48806614]
[1641474360154,23.93168863,3383.0,3382.6,1.86033202]
[1641474360355,19.65865623,3382.6,3382.4,2.50733978]
[1641474360555,17.15865623,3382.5,3382.4,2.50733978]
[1641474360758,31.36721295,3382.5,3382.1,0.62695534]
[1641474361058,29.86721295,3382.5,3382.1,1.50212981]
[1641474361654,12.730229,3382.5,3382.1,1.50212981]
[1641474361855,2.97845885,3382.2,3381.8,2.36705904]
[1641474362057,4.00958,3381.9,3381.8,0.62695534]
[1641474362255,16.91958,3381.9,3381.0,5.49885268]
[1641474362455,4.0,3381.8,3381.0,5.49885268]
[1641474363055,1.5,3382.8,3381.0,5.49885268]
[1641474363056,4.0,3383.6,3381.6,1.5]
[1641474363458,3.13179364,3383.7,3382.2,1.47761342]
[1641474363655,0.03344844,3383.5,3382.2,1.47761342]
[1641474364056,2.03823844,3383.6,3382.6,2.00479]
[1641474364456,2.00479,3383.6,3382.8,1.5]
[1641474364657,2.00479,3383.6,3382.9,0.781654]
[1641474365758,1.00479,3383.6,3382.9,0.781654]
[1641474365961,1.00479,3383.6,3383.1,2.00479]
[1641474366258,1.00479,3383.6,3383.1,2.401972]
[1641474368269,2.00479,3383.9,3383.1,2.401972]
[1641474368670,2.00479,3383.9,3383.6,1.0]
[1641474368871,2.00479,3383.9,3383.6,1.397182]
[1641474369069,2.00479,3383.9,3383.7,0.459982]
[1641474369269,2.00479,3383.9,3383.6,1.0]
[1641474369469,0.45904794,3383.8,3383.6,1.0]
[1641474370070,0.45904794,3383.8,3383.7,0.397182]
[1641474370270,0.45904794,3383.8,3383.7,1.115182]
[1641474371674,1.00092514,3384.0,3383.7,2.36633051]
[1641474371874,1.00092514,3384.5,3383.8,0.459982]
[1641474372074,1.00092514,3384.5,3384.0,2.00479]
[1641474372673,0.03343514,3384.4,3384.0,2.00479]
[1641474372873,0.03343514,3384.4,3384.1,0.397182]
[1641474373076,0.03343514,3384.4,3384.2,0.844454]
[1641474373273,1.00092514,3384.5,3384.3,0.397182]
[1641474373777,0.00092514,3384.4,3384.3,0.397182]
[1641474374574,1.25114851,3384.8,3384.3,0.397182]
[1641474374775,1.25114851,3384.8,3384.3,0.988382]
[1641474375975,0.03343251,3384.7,3384.5,2.00479]
[1641474377375,1.25114851,3384.6,3384.5,2.00479]
[1641474377978,1.28458102,3384.6,3384.5,2.00479]
[1641474378377,0.03343251,3384.6,3384.5,2.00479]
[1641474378779,12.91,3384.5,3384.0,2.00479]
[1641474378984,20.91,3384.0,3383.6,2.67994851]
[1641474379180,8.0,3384.0,3383.6,2.67994851]
[1641474379380,8.397182,3383.9,3383.6,2.27114851]
[1641474379881,0.397182,3383.9,3383.6,2.27114851]
[1641474380079,2.00479,3383.7,3383.6,2.27114851]
[1641474380680,2.00479,3383.7,3383.6,2.73113051]
[1641474380884,2.00479,3383.7,3383.6,1.479982]
[1641474381081,2.00479,3383.7,3383.6,1.877164]
[1641474381782,2.00479,3383.7,3383.6,0.857164]
[1641474381983,0.98479,3383.7,3383.6,0.857164]
[1641474382385,0.98479,3383.7,3383.6,1.32712965]
[1641474382783,0.98479,3383.7,3383.6,0.86714765]
[1641474383184,0.98479,3383.7,3383.6,1.32712965]
[1641474383785,0.41359,3383.7,3383.6,1.32712965]
[1641474384486,0.41359,3383.7,3383.6,2.32801178]
[1641474384689,0.41359,3383.7,3383.6,1.47084778]
[1641474384886,0.810772,3383.7,3383.6,1.47084778]
[1641474385689,0.84420631,3383.7,3383.6,1.47084778]
[1641474385889,21.75420631,3383.7,3383.6,1.47084778]
[1641474386092,25.25899631,3383.7,3383.6,1.47084778]
[1641474386290,29.35141731,3383.7,3383.6,1.47084778]
[1641474386491,16.44141731,3383.7,3383.3,1.00088213]
[1641474387090,0.03343431,3383.6,3383.3,1.00088213]
[1641474387290,0.397182,3383.5,3383.3,1.00088213]
[1641474387691,0.75071412,3383.6,3383.3,1.00088213]
[1641474387892,0.75071412,3383.6,3383.3,1.70468213]
[1641474388093,0.75071412,3383.6,3383.4,0.397182]
[1641474388492,3.16909412,3383.7,3383.4,0.857164]
[1641474388692,3.16909412,3383.7,3383.4,1.85804613]
[1641474388893,3.16909412,3383.7,3383.4,1.39806413]
[1641474389093,0.75071412,3383.7,3383.4,1.39806413]
[1641474389493,0.75071412,3383.7,3383.5,0.92994765]
[1641474389693,1.412e-05,3383.7,3383.6,1.897182]
[1641474389895,1.00088213,3384.0,3383.6,0.397182]
[1641474390094,1.00088213,3384.0,3383.8,2.00479]
[1641474390293,1.00088213,3384.0,3383.9,0.781654]
[1641474390494,1.00088213,3384.0,3383.9,1.241636]
[1641474390896,1.00088213,3384.4,3383.8,2.00479]
[1641474391299,12.94342785,3384.3,3383.8,2.00479]
[1641474391498,0.43060985,3384.3,3383.8,2.00479]
[1641474391698,0.03342785,3384.2,3383.8,2.00479]
[1641474391902,4.0,3383.9,3383.6,1.72111311]
[1641474392297,4.0,3383.9,3383.6,1.25114746]
[1641474392503,0.43060985,3383.8,3383.5,3.25593746]
[1641474392699,16.91,3383.9,3383.5,3.25593746]
[1641474392700,12.91,3383.9,3383.5,1.25114746]
[1641474393299,4.728551,3383.8,3383.5,1.25114746]
[1641474393498,17.638551,3383.8,3383.5,1.25114746]
[1641474393698,21.638551,3383.8,3383.5,1.25114746]
[1641474394099,22.07304723,3383.8,3383.1,1.25114746]
[1641474394900,0.03343372,3383.7,3383.1,1.25114746]
[1641474395701,4.0,3383.2,3383.1,1.25114746]
[1641474395905,4.638,3383.2,3383.1,1.25114746]
[1641474396104,11.37211,3383.2,3383.1,1.25114746]
[1641474396605,19.37211,3383.2,3383.1,1.25114746]
[1641474396806,33.78211,3383.2,3382.6,1.87541256]
[1641474397108,19.65855628,3382.6,3382.5,1.50173246]
[1641474397305,23.65855628,3382.6,3382.5,1.50173246]
[1641474397505,15.47871528,3382.6,3382.5,1.50173246]
[1641474397806,14.86111528,3382.6,3382.5,1.50173246]
[1641474398105,16.86590528,3382.6,3382.3,1.87541256]
[1641474398306,10.86111528,3382.6,3382.3,1.87541256]
[1641474398607,10.86111528,3382.6,3381.8,1.87541256]
[1641474398809,10.86111528,3382.6,3381.9,0.781654]
[1641474399607,10.86111528,3382.6,3382.0,1.87541256]
[1641474400306,10.86111528,3382.6,3382.1,2.00479]
[1641474400706,0.46742099,3382.5,3382.1,2.00479]
[1641474402409,8.46742099,3382.5,3382.1,2.00479]
[1641474402608,8.46742099,3382.5,3381.8,1.87541256]
[1641474402809,4.730508,3382.4,3381.9,1.87541256]
[1641474404011,0.46742099,3382.3,3381.9,0.781654]
[1641474404208,0.46742099,3382.3,3381.6,2.50055007]
[1641474404209,2.47221099,3382.3,3381.6,2.50055007]
[1641474404409,4.730788,3382.2,3381.6,2.50055007]
[1641474404610,2.47221099,3382.3,3381.7,1.897182]
[1641474404810,2.47221099,3382.3,3381.7,0.397182]
[1641474405610,2.00479,3382.3,3381.7,2.27259456]
[1641474405811,14.38827745,3382.6,3382.0,1.50391592]
[1641474405812,2.47915958,3382.6,3382.0,1.50391592]
[1641474406116,1.50391592,3383.1,3382.4,1.5]
[1641474406310,1.50391592,3383.1,3383.0,2.00479]
[1641474406512,1.50391592,3383.1,3383.0,4.361954]
[1641474406810,1.50391592,3383.1,3383.0,2.861954]
[1641474407010,1.25309417,3383.3,3383.0,2.861954]
[1641474407712,1.503713,3383.6,3383.1,1.4771987]
[1641474408012,1.503713,3383.6,3383.2,0.781654]
[1641474408212,1.503713,3383.6,3383.5,3.50479]
[1641474408414,1.503713,3383.6,3383.5,2.861954]
[1641474408613,1.87541256,3383.8,3383.5,2.861954]
[1641474408815,2.50055007,3384.1,3383.5,2.861954]
[1641474409012,2.00479,3384.4,3383.8,1.5]
[1641474409217,2.00479,3384.4,3383.9,0.397182]
[1641474410114,2.00479,3384.4,3384.0,0.384472]
[1641474410314,0.7515158,3384.3,3384.0,0.384472]
[1641474410513,0.7515158,3384.3,3384.1,0.857164]
[1641474411417,0.62662135,3384.9,3384.2,1.95135843]
[1641474411618,0.46990213,3384.3,3384.2,0.45135843]
[1641474411830,2.50055007,3385.5,3384.2,2.41134043]
[1641474412018,2.50055007,3385.5,3385.2,1.5]
[1641474412218,2.50055007,3385.5,3385.2,6.853434]
[1641474412421,2.50055007,3385.5,3385.2,5.353434]
[1641474412621,2.50055007,3385.5,3385.2,5.813416]
[1641474413219,2.50055007,3385.5,3385.2,4.57178]
[1641474413419,12.0,3386.1,3385.2,4.00958]
[1641474413619,8.0,3386.1,3385.3,0.459982]
[1641474413819,0.03341453,3386.0,3385.3,1.0]
[1641474414618,0.03341453,3386.0,3385.4,0.397182]
[1641474415021,0.03341453,3386.0,3385.3,1.0]
[1641474416824,23.41172143,3385.8,3385.7,1.00172143]
[1641474417023,14.50172143,3385.8,3385.7,1.00172143]
[1641474417224,19.26082396,3385.8,3385.7,1.00172143]
[1641474417626,17.76082396,3385.8,3385.7,1.00172143]
[1641474417924,29.66910253,3385.8,3385.4,1.00172143]
[1641474418324,2.00479,3385.6,3385.4,1.00172143]
[1641474418724,1.00479,3385.6,3385.4,1.00172143]
[1641474419125,1.0017902,3385.5,3385.4,1.00172143]
[1641474419525,1.0017902,3385.5,3385.4,1.46170343]
[1641474419725,1.0017902,3385.5,3385.4,1.39890343]
[1641474420129,1.0017902,3385.5,3385.4,2.89890343]
[1641474420327,9.02e-05,3385.5,3385.4,4.90369343]
[1641474420529,9.02e-05,3385.5,3385.4,3.86367543]
[1641474421128,1.25223775,3385.8,3385.4,0.857164]
[1641474421328,2.50055007,3386.5,3385.4,0.857164]
[1641474421530,6.72877338,3386.6,3385.4,0.857164]
[1641474421727,0.03340883,3386.4,3385.4,0.857164]
[1641474422128,0.03340883,3386.5,3385.4,0.857164]
[1641474422330,0.03340883,3386.3,3386.0,2.00479]
[1641474422528,1.28564658,3386.4,3386.0,2.00479]
[1641474422731,2.75223775,3386.4,3385.9,0.384472]
[1641474422928,0.0334096,3386.3,3385.7,1.25204235]
[1641474423129,1.51007606,3386.3,3385.7,1.25204235]
[1641474423328,0.0334096,3386.3,3385.7,1.64922435]
[1641474423528,0.0334096,3386.2,3385.7,1.64922435]
[1641474423930,4.2288606,3386.4,3385.7,1.64922435]
[1641474424130,1.25223775,3386.1,3385.7,0.397182]
[1641474424328,1.25223775,3386.1,3385.9,2.00479]
[1641474424527,1.25223775,3386.1,3386.0,0.857164]
[1641474424728,1.5026642,3386.4,3386.0,1.975036]
[1641474424931,1.5026642,3386.4,3386.0,3.475036]
[1641474425531,5.467,3386.7,3386.1,1.17841761]
[1641474425731,35.06083416,3387.9,3386.2,1.897182]
[1641474426332,6.76206315,3387.8,3387.0,2.00479]
[1641474426634,2.03818915,3387.8,3387.1,0.397182]
[1641474426834,2.03818915,3387.8,3387.2,0.384472]
[1641474427036,0.03339915,3387.7,3387.3,0.397182]
[1641474427434,0.03339915,3388.0,3387.4,1.05353076]
[1641474427633,5.467,3388.1,3387.5,0.397182]
[1641474427835,0.0333951,3387.9,3387.5,0.397182]
[1641474428235,0.0333951,3388.0,3387.5,0.397182]
[1641474428434,5.467,3388.1,3387.5,0.397182]
[1641474428435,0.0333951,3387.8,3387.6,2.00479]
[1641474428636,0.0333951,3387.9,3387.6,2.00479]
[1641474429036,0.0333951,3387.9,3387.7,0.397182]
[1641474429236,0.0333951,3388.0,3387.7,0.397182]
[1641474429436,0.0333951,3388.0,3387.8,0.459982]
[1641474429737,0.0333951,3388.0,3387.6,2.00479]
[1641474430137,0.0333951,3388.0,3387.7,0.397182]
[1641474430339,0.0333951,3388.0,3387.8,0.459982]
[1641474430538,0.0333951,3388.0,3387.7,0.397182]
[1641474431441,0.0333951,3388.0,3387.8,0.459982]
[1641474431640,0.0333951,3388.0,3387.7,0.397182]
[1641474432140,0.0333951,3388.0,3387.6,2.00479]
[1641474432339,0.0333951,3388.0,3387.6,2.401972]
[1641474436144,0.0333951,3388.5,3387.6,2.401972]
[1641474436346,0.0333951,3387.9,3387.6,2.401972]
[1641474436645,0.0333951,3388.4,3387.7,0.459982]
[1641474436947,0.0333951,3388.5,3387.8,0.397182]
[1641474437144,0.0333951,3388.3,3387.8,0.397182]
[1641474437545,1.5333951,3388.4,3387.8,0.397182]
[1641474437744,0.0333951,3388.2,3387.8,0.397182]
[1641474437946,0.0333951,3388.3,3387.8,0.397182]
[1641474438346,0.0333951,3388.5,3387.8,0.397182]
[1641474438547,0.0333951,3388.2,3387.8,0.397182]
[1641474438747,1.5,3388.3,3387.8,0.397182]
[1641474438948,1.5,3388.3,3387.6,2.00479]
[1641474439148,4.0333951,3388.1,3387.6,2.401972]
[1641474439450,0.0333951,3388.0,3387.6,2.401972]
[1641474440452,4.0333951,3388.2,3387.6,2.401972]
[1641474440651,0.0333951,3387.9,3387.6,2.401972]
[1641474440855,0.0333951,3387.9,3387.7,0.459982]
[1641474441053,4.0,3388.2,3387.6,2.401972]
[1641474441054,0.0333951,3388.1,3387.6,2.401972]
[1641474441252,0.0333951,3387.8,3387.6,2.401972]
[1641474441454,0.0333951,3388.0,3387.7,0.384472]
[1641474441652,6.967,3388.5,3387.8,0.459982]
[1641474441854,6.967,3388.5,3387.6,2.00479]
[1641474442054,1.5,3388.2,3388.1,1.0]
[1641474442252,19.877,3388.5,3388.1,1.0]
[1641474442454,4.72248,3388.4,3388.1,1.0]
[1641474442653,25.63248,3388.4,3388.1,1.0]
[1641474442853,20.91,3388.2,3388.1,1.0]
[1641474443059,8.0,3388.2,3388.1,0.03533402]
[1641474444454,4.0,3388.4,3388.1,0.03533402]
[1641474444655,4.0,3388.4,3388.1,0.79653402]
[1641474445056,1.47578604,3388.3,3388.1,0.79653402]
[1641474445256,6.19798704,3388.3,3388.1,0.79653402]
[1641474445557,5.467,3388.5,3388.2,0.459982]
[1641474445758,5.467,3388.5,3388.1,0.79653402]
[1641474445957,5.467,3388.5,3388.1,1.19371602]
[1641474446656,2.00479,3388.7,3388.1,1.19371602]
[1641474446957,1.5,3388.6,3388.1,0.79653402]
[1641474447158,2.00479,3388.7,3388.2,0.397182]
[1641474448559,5.467,3389.1,3388.3,0.384472]
[1641474448759,5.467,3389.1,3388.4,0.397182]
[1641474450160,8.0,3389.3,3388.4,0.397182]
[1641474450361,1.91914611,3389.5,3388.4,0.397182]
[1641474450562,2.00479,3389.1,3388.4,0.397182]
[1641474452362,2.00479,3389.1,3388.7,1.5]
[1641474452561,2.00479,3389.5,3388.8,2.401972]
[1641474452761,2.00479,3389.5,3388.8,2.71469]
[1641474452966,2.00479,3389.5,3388.9,1.5]
[1641474453163,2.00479,3389.5,3389.0,0.384472]
[1641474453463,2.00479,3389.9,3389.2,1.5]
[1641474453661,2.00479,3389.9,3389.0,0.384472]
[1641474453662,0.74165094,3390.5,3389.8,1.47422176]
[1641474453863,0.98884744,3390.8,3389.8,0.6508]
[1641474454062,0.74165094,3391.0,3389.8,0.6508]
[1641474454561,4.0,3390.4,3389.9,2.00479]
[1641474454761,1.5,3390.2,3389.0,33.7658]
[1641474454962,12.719555,3390.3,3388.7,1.47473919]
[1641474455163,5.5,3389.6,3388.4,0.6313]
[1641474455363,0.5552,3389.6,3388.2,1.47496759]
[1641474455662,0.5552,3389.6,3387.8,62.9533]
[1641474455663,4.721156,3389.5,3387.8,62.9533]
[1641474456165,4.721156,3389.5,3387.6,12.91]
[1641474456166,4.721156,3389.5,3387.7,1.47518952]
[1641474456362,4.721156,3389.5,3387.8,1.5]
[1641474456564,2.00479,3389.2,3388.4,2.00479]
[1641474456763,0.0333833,3389.4,3388.5,0.781654]
[1641474456965,0.0333833,3389.1,3388.5,0.781654]
[1641474457263,0.0333833,3389.5,3388.5,0.781654]
[1641474457464,3.47997952,3389.6,3388.5,0.781654]
[1641474457663,11.47997952,3389.6,3388.5,0.781654]
[1641474457864,0.0333837,3389.4,3388.5,0.781654]
[1641474458065,0.0333837,3389.5,3388.5,0.781654]
[1641474458265,0.0333837,3389.3,3388.5,0.781654]
[1641474458464,0.0333837,3389.3,3389.0,2.00479]
[1641474458666,0.0333837,3389.4,3389.1,0.857164]
[1641474458865,0.0333837,3389.2,3389.1,0.857164]
[1641474459066,0.0333837,3389.3,3389.0,2.00479]
[1641474459266,0.0333837,3389.3,3389.0,2.401972]
[1641474459466,0.0333837,3389.2,3389.1,0.459982]
[1641474459665,0.0333837,3389.2,3388.4,2.00479]
[1641474459967,4.0,3389.2,3388.5,0.397182]
[1641474460167,8.0,3389.0,3388.4,2.00479]
[1641474460366,20.91,3389.0,3388.4,2.00479]
[1641474460569,12.7549577,3388.9,3388.4,2.00479]
[1641474460767,14.23048461,3388.9,3388.4,2.00479]
[1641474460968,0.0333837,3388.8,3388.5,0.397182]
[1641474461466,0.0333837,3389.1,3388.5,0.397182]
[1641474461667,2.00479,3389.2,3388.5,0.397182]
[1641474462067,6.23018027,3389.1,3388.4,2.00479]
[1641474462266,6.23018027,3389.1,3388.6,0.397182]
[1641474462766,0.03338633,3389.0,3388.6,0.397182]
[1641474463367,0.03338633,3389.1,3388.6,0.397182]
[1641474464869,0.03338633,3389.1,3388.4,2.00479]
[1641474464870,12.94338633,3389.1,3388.4,2.00479]
[1641474465170,1.47558134,3388.7,3388.4,2.00479]
[1641474465570,4.721783,3388.6,3388.4,2.00479]
[1641474465770,4.75516933,3388.6,3388.4,2.00479]
[1641474465971,0.03338633,3388.5,3388.4,2.00479]
[1641474466471,0.03338633,3388.5,3388.1,0.03533402]
[1641474466672,0.03338633,3388.6,3388.1,0.03533402]
[1641474466873,1.50903953,3388.6,3388.1,0.03533402]
[1641474467072,0.03338633,3388.4,3388.1,0.03533402]
[1641474467272,4.75544833,3388.5,3388.1,0.03533402]
[1641474467472,0.03338633,3388.3,3388.1,0.03533402]
[1641474467676,0.03338633,3388.4,3388.1,0.03533402]
[1641474468272,0.03338633,3388.4,3388.1,0.43251602]
[1641474468474,0.03338633,3388.5,3388.1,0.43251602]
[1641474468877,0.03338633,3388.5,3388.2,0.384472]
[1641474469075,2.00479,3388.8,3388.3,0.857164]
[1641474469876,0.03338668,3388.7,3388.3,0.857164]
[1641474470076,2.00479,3388.8,3388.3,0.857164]
[1641474470476,2.00479,3389.2,3388.4,2.00479]
[1641474470678,2.00479,3389.2,3388.5,0.397182]
[1641474471276,0.03338444,3389.1,3388.6,1.5]
[1641474471480,0.03338444,3389.1,3388.7,0.397182]
[1641474471676,0.03338444,3389.4,3388.7,0.397182]
[1641474471876,2.00479,3389.5,3388.7,0.397182]
[1641474472077,2.00479,3389.5,3388.8,0.03533402]
[1641474472278,0.03338084,3389.4,3388.9,0.397182]
[1641474472477,0.03338084,3389.4,3389.0,2.00479]
[1641474472877,0.03338084,3389.4,3389.1,0.397182]
[1641474473079,0.03338084,3389.4,3389.2,0.459982]
[1641474473279,0.03338084,3389.4,3389.2,0.397182]
[1641474474978,0.03338084,3389.8,3389.2,1.068682]
[1641474475180,0.03338084,3389.3,3389.2,1.068682]
[1641474475579,0.03338084,3389.7,3389.2,1.528664]
[1641474475781,0.03338084,3389.3,3389.2,1.528664]
[1641474475979,0.03338084,3389.6,3389.2,1.528664]
[1641474476180,0.03338084,3389.3,3389.2,1.528664]
[1641474476381,0.03338084,3389.5,3389.2,1.528664]
[1641474476580,0.03338084,3389.5,3389.4,2.00479]
[1641474476780,2.00479,3390.1,3389.4,2.861954]
[1641474476982,0.74165094,3390.2,3389.4,2.861954]
[1641474477782,2.16219838,3390.5,3389.4,2.861954]
[1641474478082,1.17335094,3390.5,3389.4,2.861954]
[1641474478482,6.19468747,3390.4,3389.4,2.861954]
[1641474478681,6.19468747,3390.4,3390.1,2.00479]
[1641474478882,4.719833,3390.4,3390.1,2.00479]
[1641474479084,1.17335094,3390.5,3390.2,0.844454]
[1641474479283,0.74165094,3390.4,3390.2,0.844454]
[1641474479483,0.74165094,3390.4,3390.3,0.397182]
[1641474480282,0.98884744,3390.7,3390.3,0.397182]
[1641474480482,0.98884744,3390.7,3390.3,0.857164]
[1641474480687,2.00479,3390.9,3390.3,0.857164]
[1641474480882,2.00479,3390.9,3390.3,0.48520169]
[1641474481483,4.0,3390.8,3390.3,0.48520169]
[1641474481687,20.91,3390.7,3390.1,2.00479]
[1641474481883,1.47486317,3390.4,3390.1,2.00479]
[1641474482182,13.091379,3390.3,3390.1,2.00479]
[1641474482583,13.091379,3390.3,3389.7,2.00479]
[1641474482783,4.0,3390.0,3389.7,2.00479]
[1641474483086,26.001936,3389.9,3389.7,2.00479]
[1641474483283,1.47510683,3389.8,3388.8,0.03533402]
[1641474483486,20.91,3389.4,3388.8,0.03533402]
[1641474483684,8.371964,3389.3,3388.8,0.03533402]
[1641474483885,1.47538105,3389.2,3388.8,0.03533402]
[1641474484086,0.371964,3389.1,3388.8,0.03533402]
[1641474484288,5.09312,3389.1,3388.8,0.03533402]
[1641474484685,4.721156,3389.1,3388.8,0.03533402]
[1641474484889,4.721156,3389.1,3388.9,0.459982]
[1641474485087,4.721156,3389.1,3388.9,0.397182]
[1641474485287,6.38784434,3389.1,3388.9,0.397182]
[1641474485786,1.66668834,3389.1,3388.9,0.397182]
[1641474485986,1.66668834,3389.1,3389.0,0.459982]
[1641474486187,1.66668834,3389.1,3388.9,0.397182]
[1641474486390,0.43062584,3389.0,3388.9,0.397182]
[1641474486588,0.43062584,3389.0,3388.8,0.03533402]
[1641474487189,0.43062584,3389.0,3388.8,0.49531602]
[1641474487387,1.2360625,3389.4,3388.9,0.397182]
[1641474487787,1.6080265,3389.4,3388.9,0.397182]
[1641474488188,4.720947,3389.3,3388.9,0.397182]
[1641474488388,1.2360625,3389.4,3388.9,0.397182]
[1641474488588,0.371964,3389.4,3388.9,0.397182]
[1641474488788,1.47521999,3389.6,3388.9,0.397182]
[1641474488988,0.3535552,3389.7,3388.9,0.397182]
[1641474489991,0.371964,3389.6,3388.9,0.397182]
[1641474490590,0.371964,3389.6,3389.1,2.00479]
[1641474490990,0.3535552,3389.7,3389.2,0.397182]
[1641474491592,2.376754,3389.8,3389.2,0.397182]
[1641474491791,0.03337768,3389.6,3389.2,0.397182]
[1641474491995,0.03337768,3389.7,3389.2,0.86643676]
[1641474492192,10.00479,3390.1,3389.2,0.86643676]
[1641474492193,0.03337768,3389.5,3389.2,0.86643676]
[1641474492394,2.00479,3390.1,3389.3,0.459982]
[1641474492693,2.00479,3390.1,3389.6,2.00479]
[1641474493095,2.00479,3390.1,3389.6,2.401972]
[1641474493396,0.03337588,3390.0,3389.6,2.401972]
[1641474493594,0.40533988,3390.0,3389.6,2.401972]
[1641474493795,0.40533988,3390.0,3389.6,2.00479]
[1641474493994,0.03337588,3389.9,3389.6,2.401972]
[1641474494194,0.03337588,3389.9,3389.7,0.459982]
[1641474494794,0.03337588,3389.9,3389.6,2.00479]
[1641474494994,0.03337588,3389.9,3389.7,0.459982]
[1641474495194,0.03337588,3389.9,3389.6,2.00479]
[1641474495795,0.03337588,3389.9,3389.7,0.459982]
[1641474495998,0.03337588,3389.9,3389.6,2.00479]
[1641474496196,0.03337588,3389.9,3389.7,0.397182]
[1641474496696,0.03337588,3390.3,3389.7,0.397182]
[1641474496896,0.03337588,3389.8,3389.7,0.397182]
[1641474497099,0.03337588,3389.8,3389.7,0.781654]
[1641474497296,0.03337588,3390.2,3389.7,0.781654]
[1641474497497,1.2360625,3390.6,3389.7,0.781654]
[1641474497895,0.03337406,3390.5,3389.7,0.781654]
[1641474498597,4.03337406,3390.5,3390.0,2.00479]
[1641474498798,4.40533806,3390.5,3390.0,2.401972]
[1641474499198,0.03337406,3390.4,3390.0,2.401972]
[1641474499398,8.371964,3390.3,3389.6,2.00479]
[1641474499601,4.0,3390.0,3389.6,2.00479]
[1641474499798,8.0,3389.9,3389.6,2.00479]
[1641474499998,8.03337406,3389.9,3388.9,0.98884744]
[1641474500199,8.03337406,3389.9,3388.9,2.48884744]
[1641474500400,8.03337406,3389.9,3388.9,0.98884744]
[1641474500600,0.03337406,3389.8,3389.4,2.00479]
[1641474501199,8.0,3389.6,3388.8,0.78226534]
[1641474501401,8.0,3389.6,3388.9,0.397182]
[1641474501701,0.371964,3389.7,3389.0,0.384472]
[1641474501901,0.371964,3389.7,3389.1,0.397182]
[1641474502103,0.03337959,3389.6,3389.1,0.397182]
[1641474502304,0.03337959,3389.6,3389.0,0.384472]
[1641474502602,0.03337959,3389.6,3389.0,0.781654]
[1641474502801,0.03337959,3389.6,3389.2,2.00479]
[1641474503402,1.5,3389.4,3388.6,0.74693132]
[1641474503601,4.0,3388.9,3388.6,0.74693132]
[1641474503803,1.47564231,3388.7,3388.6,0.74693132]
[1641474504000,9.87283738,3388.7,3388.6,3.132e-05]
[1641474504200,14.59448138,3388.7,3388.6,3.132e-05]
[1641474504400,14.62786097,3388.7,3388.4,0.98884744]
[1641474504804,14.62786097,3388.7,3387.7,0.98884744]
[1641474504805,2.00479,3388.5,3387.7,0.98884744]
[1641474505001,2.00479,3388.5,3387.8,0.445023]
[1641474505201,0.03337959,3388.4,3387.8,0.445023]
[1641474505402,9.47530705,3389.4,3388.2,1.5]
[1641474505601,1.2360625,3389.6,3388.2,1.5]
[1641474505602,4.0,3388.7,3388.2,0.7582]
[1641474505804,10.25731373,3388.6,3387.7,0.98884744]
[1641474506202,10.25731373,3388.6,3386.9,1.44778541]
[1641474506411,10.25731373,3388.6,3387.4,0.99621265]
[1641474506412,8.0,3387.6,3387.4,0.99621265]
[1641474506604,1.897182,3387.5,3387.4,0.99621265]
[1641474506803,31.540009,3387.5,3387.4,0.99621265]
[1641474507003,31.57340773,3387.5,3387.4,0.99621265]
[1641474507703,37.43423661,3387.5,3387.4,0.99621265]
[1641474507903,31.93423661,3387.5,3386.4,0.80052111]
[1641474508103,31.93423661,3387.5,3386.1,3.13179364]
[1641474508104,9.47653563,3386.5,3386.1,3.13179364]
[1641474508308,4.0,3386.2,3386.1,3.13179364]
[1641474508504,8.0,3386.4,3386.1,3.13179364]
[1641474508704,8.0,3386.4,3385.9,3.443077]
[1641474508705,6.96159,3386.2,3385.9,3.443077]
[1641474508904,14.96159,3386.2,3385.1,5.83246059]
[1641474509304,8.0,3385.8,3385.1,5.83246059]
[1641474509505,9.47693253,3385.4,3385.1,5.83246059]
[1641474509706,0.384472,3385.3,3385.1,5.83246059]
[1641474509912,0.397182,3385.2,3385.1,3.7578084]
[1641474510106,0.397182,3385.2,3384.4,1.60514112]
[1641474510107,0.397182,3385.2,3384.5,3.13179364]
[1641474510307,5.123708,3385.2,3384.6,0.445023]
[1641474510709,2.00479,3384.7,3384.6,0.445023]
[1641474510907,2.00479,3384.7,3384.6,0.905005]
[1641474511108,2.00479,3384.7,3384.6,0.520533]
[1641474511412,6.732014,3384.7,3384.6,0.520533]
[1641474511609,4.72785562,3384.7,3384.6,0.520533]
[1641474511811,0.00063162,3384.7,3384.6,0.520533]
[1641474512210,1.47673624,3385.8,3384.6,2.020533]
[1641474512512,1.47673624,3385.8,3384.6,1.700505]
[1641474512709,2.00479,3385.6,3384.8,1.5]
[1641474512911,2.00479,3385.6,3385.1,1.5]
[1641474513111,2.00479,3385.6,3384.7,2.00479]
[1641474513112,2.389262,3385.6,3384.7,2.00479]